Cogmind - Beta 9.1 @@@ ROGUE MODE // 2019.10.31 @ 14:19:01 Player: zapruda Result: Destroyed by G-34 Mercenary with Small Laser Performance ------------- Evolutions (1) 500 Regions Visited (2) 400 Robots Destroyed (24) 120 Value Destroyed (649) 649 Prototype IDs (2) 40 Alien Tech Used (0) 0 Bonus (0) 0 TOTAL SCORE: 1709 Bonus ------- None Cogmind --------- Core Integrity 0/400 Matter 280/300 Energy 32/100 System Corruption 0% Temperature Cool (6) Location -9/Materials Parts ------- Power (1) Propulsion (4) Utility (2) Large Storage Unit Weapon (2) Beam Rifle Inventory (10) Peak State ------------ Power Ion Engine Propulsion Light Treads Light Treads Aluminum Leg Aluminum Leg Utility Cooling System Improved Weapon Shielding Weapon Particle Gun Light Assault Rifle Inventory Light Nuclear Core Large Storage Unit [Rating: 13] Favorites ----------- Power Ion Engine Engine Ion Engine Power Core Light Nuclear Core Propulsion Light Treads Treads Light Treads Leg Aluminum Leg Utility Cooling System Device Cooling System Storage Small Storage Unit Protection Improved Weapon Shielding Weapon Particle Gun Energy Gun Particle Gun Energy Cannon Beam Cannon Ballistic Gun Light Assault Rifle Launcher Grenade Launcher Build | -11 -10 -9 ------- Run | Scr Mat Mat Slots Evolved 2 | . . 2 Power . | . . . Propulsion 2 | . . 2 Utility . | . . . Weapon . | . . . Parts Attached 28 | 6 8 14 Power 2 | 1 . 1 Engine 1 | 1 . . Core 1 | . . 1 Reactor . | . . . Propulsion 6 | 2 . 4 Treads 2 | 2 . . Leg 4 | . . 4 Wheel . | . . . Hover . | . . . Flight . | . . . Utility 9 | 1 3 5 Device 5 | . 2 3 Storage 3 | 1 1 1 Processor . | . . . Hackware . | . . . Protection 1 | . . 1 Artifact . | . . . Weapon 11 | 2 5 4 Energy Gun 8 | 2 2 4 Energy Cannon 1 | . 1 . Ballistic Gun 1 | . 1 . Ballistic Cannon . | . . . Launcher 1 | . 1 . Special Weapon . | . . . Impact Weapon . | . . . Slashing Weapon . | . . . Piercing Weapon . | . . . Special Melee Weapon . | . . . Unidentified Prototypes . | . . . Parts Lost 20 | . 3 17 Power 2 | . . 2 Propulsion 6 | . . 6 Utility 5 | . . 5 Weapon 7 | . 3 4 Highest Loss Streak 8 | . 2 8 Average Slot Usage (%) 70 | . 90 37 Engine 9 | . 14 2 Treads 18 | . 28 3 Leg 5 | . . 13 Device 12 | . 19 2 Storage 4 | . 5 1 Energy Gun 8 | . 10 4 Ballistic Gun 5 | . 5 4 Launcher 3 | . 5 . Naked Turns 30 | . . 30 Heaviest Build 27 | 12 27 27 Greatest Support 40 | 40 40 40 Greatest Overweight (x) 6 | 1 . 6 Average Overweight (x) . | . . . Largest Inventory Capacity 10 | 6 10 10 Average Capacity 5 | 5 5 5 Most Carried 6 | 5 6 4 Average Carried 2 | 2 3 1 Final Capacity 10 | 6 10 10 Final Carried 4 | 4 4 . Class Distribution -------------------- 100% | Mutant Dominant Class ---------------- Mutant | -10/Materials Mutant | -9/Materials Resources | -11 -10 -9 ----------- Run | Scr Mat Mat Matter Collected 543 | 221 212 110 Remotely 21 | . . 21 Salvage Created 743 | . 526 217 Parts 42 | . 32 10 Haulers Intercepted . | . . . Recyclers Shooed 1 | . 1 . Parts Field Recycled . | . . . Retrieved Matter . | . . . Parts Self-Destructed . | . . . Prevented . | . . . Kills | -11 -10 -9 ------- Run | Scr Mat Mat Combat Hostiles Destroyed 16 | . 10 6 Guns 11 | . 5 6 Cannons 2 | . 2 . AOE 3 | . 3 . Classes Destroyed 8 | . 7 1 Worker 1 | . 1 . Builder 2 | . 2 . Recycler 1 | . 1 . Operator 1 | . 1 . Watcher 3 | . 3 . Swarmer 2 | . 2 . Grunt 13 | . 8 5 Duelist 1 | . . 1 Best Kill Streak 10 | . 10 2 Combat Bots Only 7 | . 7 2 Max Kills in Single Turn 3 | . 3 1 Gunslinging . | . . . Exploded 1 | . 1 . Melee . | . . . Uniques/NPCs Destroyed . | . . . Combat | -11 -10 -9 -------- Run | Scr Mat Mat Damage Taken 1885 | . 542 1343 Core 506 | . 102 404 Absorbed by Shields . | . . . Core Remaining (%) 79 | 100 59 . Volleys Fired 89 | . 48 41 Largest 2 | . 2 2 Hottest 95 | . 95 85 Shots Fired 119 | . 58 61 Gun 103 | . 42 61 Cannon 6 | . 6 . Launcher 10 | . 10 . Special . | . . . Kinetic 45 | . 17 28 Thermal 64 | . 31 33 Explosive 10 | . 10 . Electromagnetic . | . . . Robot Hit Streak 14 | . 6 14 Robot Miss Streak 3 | . 2 3 Penetration Max . | . . . Secondary Targets 1 | . . 1 Max Gunslinging Chain 1 | . . 1 Shots Hit Robots 81 | . 35 46 Core Hits 39 | . 25 14 Critical Hits . | . . . Critical Kills . | . . . Critical Parts Destroyed . | . . . Melee Attacks . | . . . Impact . | . . . Slashing . | . . . Piercing . | . . . Sneak Attacks . | . . . Combat Hostiles . | . . . Follow-up Attacks . | . . . Damage Inflicted 1373 | . 855 518 Guns 880 | . 362 518 Cannons 86 | . 86 . Explosions 407 | . 407 . Melee . | . . . Ramming . | . . . Kinetic 212 | . 81 131 Thermal 754 | . 367 387 Explosive 407 | . 407 . Electromagnetic . | . . . Impact . | . . . Slashing . | . . . Piercing . | . . . Highest Corruption . | . . . Average Corruption . | . . . Corruption Purged . | . . . Overload Shots . | . . . Overflow Damage 13 | . 13 . Projectiles . | . . . Explosions 13 | . 13 . Melee . | . . . Knockbacks . | . . . Impact . | . . . Kinetic . | . . . Secondary . | . . . Self-Inflicted Damage 9 | . 9 . Shots 1 | . 1 . Rammed . | . . . Targets Rammed . | . . . Kicked . | . . . Crushed . | . . . Highest Temperature 141 | . 18 141 Average Temperature 43 | . 12 45 Received Heat Transfer 744 | . 249 495 Siege Activations . | . . . Robots Corrupted . | . . . Combat Hostiles . | . . . Parts Fried . | . . . Impact Corruptions . | . . . Robots Melted . | . . . Combat Hostiles . | . . . Parts Melted 2 | . 1 1 Heat Transferred 1801 | . 851 950 Parts Sabotaged . | . . . Parts Stolen . | . . . Parts Stripped . | . . . Power Chain Reactions . | . . . Missiles Intercepted . | . . . Alert | -11 -10 -9 ------- Run | Scr Mat Mat Peak Influence 328 | . 328 40 Average Influence 70 | . 115 13 Maximum Alert Level 1 | . 1 . Low Security (%) 84 | . . . Level 1 15 | . . . Level 2 . | . . . Level 3 . | . . . Level 4 . | . . . Level 5 . | . . . High Security . | . . . Max Security . | . . . Squads Dispatched 3 | . 2 1 Investigation 1 | . 1 . Extermination . | . . . Reinforcement 2 | . 1 1 Assault . | . . . Garrison . | . . . Intercept . | . . . Construction Impeded . | . . . Haulers Reinforced . | . . . Stealth | -11 -10 -9 --------- Run | Scr Mat Mat Distress Signals 1 | . 1 . Communications Jammed . | . . . Distress Signals . | . . . Times Spotted 29 | . 19 10 Peak Tracking Total 5 | . 5 5 Tactical Retreats 1 | . . 1 Traps | -11 -10 -9 ------- Run | Scr Mat Mat Traps Triggered 1 | . 1 . Indirectly . | . . . Trap Hack Attempts . | . . . Triggered . | . . . Disarmed . | . . . Reprogrammed . | . . . Reused . | . . . Traps Extracted . | . . . Installed . | . . . Triggered . | . . . Machines | -11 -10 -9 ---------- Run | Scr Mat Mat Machines Disabled 2 | . 2 . Max in Single Turn 1 | . 1 . Machines Sabotaged . | . . . Garrisons Compromised . | . . . Overloaded Fab Kills . | . . . Fab Network Shutdowns . | . . . Hacking | -11 -10 -9 --------- Run | Scr Mat Mat Machines Accessed 5 | . 4 1 Terminals 4 | . 4 . Fabricators . | . . . Repair Stations . | . . . Recycling Units 1 | . . 1 Scanalyzers . | . . . Garrison Access . | . . . Total Hacks 18 | . 16 2 Successful 8 | . 7 1 Failed 10 | . 9 1 Catastrophic 1 | . . 1 Database Lockouts . | . . . Manual . | . . . Terminals 16 | . 16 . Fabricators . | . . . Repair Stations . | . . . Recycling Units 2 | . . 2 Scanalyzers . | . . . Garrison Access . | . . . Terminal Hacks 7 | . 7 . Prototype ID Bank 1 | . 1 . Emergency Access Points 1 | . 1 . Alert Level 1 | . 1 . Unreport Threat 2 | . 2 . Registered Components 1 | . 1 . Zone Layout 1 | . 1 . Fabricator Hacks . | . . . Repair Station Hacks . | . . . Recycling Unit Hacks 1 | . . 1 Retrieve Components 1 | . . 1 Scanalyzer . | . . . Garrison Access Hacks . | . . . Unauthorized Hacks . | . . . Terminals . | . . . Fabricators . | . . . Repair Stations . | . . . Recycling Units . | . . . Scanalyzers . | . . . Garrison Access . | . . . Data Cores Recovered . | . . . Used . | . . . Hacking Detections 5 | . 4 1 Full Trace Events 1 | . 1 . Feedback Events . | . . . Feedback Blocked . | . . . Robot Schematics Acquired . | . . . Robots Built . | . . . Matter . | . . . Time . | . . . Total Robot Build Rating . | . . . Part Schematics Acquired . | . . . Parts Built . | . . . Matter . | . . . Time . | . . . Total Part Build Rating . | . . . Parts Repaired . | . . . Time . | . . . Parts Recycled . | . . . Recycled Matter . | . . . Retrieved Matter . | . . . Retrieved Components 2 | . . 2 Parts Scanalyzed . | . . . Part Schematics Acquired . | . . . Parts Damaged . | . . . Bothacking | -11 -10 -9 ------------ Run | Scr Mat Mat Used RIF Installer . | . . . Robots Hacked . | . . . Non-combat . | . . . Combat . | . . . Robot Hacks Applied . | . . . Relay Couplers Released . | . . . Robots Rewired . | . . . Allies Hacked . | . . . Hacks Repelled . | . . . Allies | -11 -10 -9 -------- Run | Scr Mat Mat Total Allies . | . . . Largest Group . | . . . Highest-Rated Group . | . . . Highest-Rated Ally . | . . . Total Orders . | . . . Ally Attacks . | . . . Total Damage . | . . . Kills . | . . . Allies Corrupted . | . . . Allies Melted . | . . . Intel | -11 -10 -9 ------- Run | Scr Mat Mat Robot Analysis Total . | . . . Derelict Logs Recovered . | . . . Drone Launches . | . . . Drone Recoveries . | . . . Exploration | -11 -10 -9 ------------- Run | Scr Mat Mat Turns Passed 899 | 77 513 309 Spaces Moved 470 | 42 241 187 Core 75 | 6 . 69 Treads 292 | 36 241 15 Legs 103 | . . 103 Wheels . | . . . Hover . | . . . Flight . | . . . Fastest Speed 50 | 50 160 50 Average Speed 135 | 149 160 100 Slowest Speed 350 | 160 160 350 Overloaded Moves . | . . . Propulsion Burnouts . | . . . Robots Hopped . | . . . Cave-ins Triggered . | . . . Exploration Rate (%) 21 | 3 46 14 Regions Visited 2 Branch Regions . Pre-discovered Areas . | . . . Known Exits Taken . | . . . Unknown Exits Taken 2 | 1 1 . Scrap Searched . | . . . Spaces Dug . | . . . Terrain Destroyed 47 | . 47 . Melee . | . . . Projectile . | . . . AOE 47 | . 47 . Actions | -11 -10 -9 --------- Run | Scr Mat Mat Total 626 | 57 317 252 Wait 1 | . . 1 Move 468 | 41 240 187 Hop . | . . . Pick Up 31 | 10 12 9 Fast Attach 1 | . 1 . Attach 24 | 6 5 13 Detach . | . . . Swap 3 | . 2 1 Drop 9 | . 9 . Fire 89 | . 48 41 Melee . | . . . Ram . | . . . Kick . | . . . Crush . | . . . Escape Stasis . | . . . Rewire . | . . . Trap . | . . . Miscellaneous . | . . . Route ------- -11/Scrapyard -10/Materials (discovered 2 exits: *Mat x2) -9/Materials History --------- Turn | Location | Event 28 | -11/Scrapyard | Discovered new exit (range 16) 78 | -11/Scrapyard | Entered Materials 255 | -10/Materials | Discovered new exit (range 3) 308 | -10/Materials | Build established: Mutant 373 | -10/Materials | Destroyed 7 combat bots 382 | -10/Materials | Discovered new exit (range 15) 591 | -10/Materials | Entered another Materials area 591 | -9/Materials | Evolved 2 slots: Propulsion x2 713 | -9/Materials | Lost 8 parts (1p3n3u1w) 761 | -9/Materials | Lost 4 parts (1n1u2w) 880 | -9/Materials | Core integrity fell below 50% 889 | -9/Materials | Core integrity fell below 20% 900 | -9/Materials | Destroyed by G-34 Mercenary with Small Laser Last Messages --------------- Aluminum Leg destroyed. Lgt. Nuclear Core destroyed. T-07 Excavator is excavating. Acquired Particle Gun. Particle Gun severed. Aluminum Leg destroyed. U-05 Engineer lays Concrete. Acquired Heat Sink. O-16 Technician: "IFF HANDSHAKE FAILED. SECURING TERMINAL." Acquired Beam Rifle. K-01 Serf collects debris. ALERT: Hostiles spotted, dispatching reinforcements to Terminal M004. K-01 Serf collects debris. Heat Sink destroyed. L-31 Rogue destroyed. Acquired 20 matter. K-01 Serf collects debris. Beam Rifle destroyed. Acquired Beam Rifle. K-01 Serf collects debris. Map ----- +----------------------------------------------------+ | ??????????????????????????????????? | | ??????????????????????????????????? | | ??????????????????????????????????? | | ??????????????????????????????????? | | ??????????????????????????????????? | | ??????????????????????????????????? | | ??????????????????????????????????? | | ???????????????????????????######## | | ???????????????????????????# # | | ???????????????????????????# """ # | | ???????????????????????????# """ # | | ???????????????????????????# """ # | | ???????????????????????????# # | | ????????# ?????????????????# """ # | | ????????# ####+########### """ # | | ??????? # # """ # | | ??????? + + # | | ????????# # """ # | | ??????????????##### #### # """ # | | ???????????###????# #??# # """ # | | ????????? ? ""??# #??# # # | | ????????# "T" # ####+######## | | ????????# / # Y #? | | ????????# # # ! #?? | | ????????########### # !%% #?? | | ????????# # @ #?? | | ????????# rg [[ #?? | | ????????# a # #?? | | ????????# u####### # ! #?? | | ?######## #?????# %# #?? | | ?# # #?????# ###########?? | | ?# #?????# % #??###??????? | | ?## # #?????# #?? #????? | | ??####### #?????# #?""" #????? | | ????????# #?????# #?""" #????? | | ????????# #?????# # """ #????? | | ????????# #?????# # #????? | | ????????# #?????# + #????? | | ????????# #??? # ########????? | | ????????# #??"" # # #????? | | ????????# #??" # # #????? | | ????????# #?""" # # """ #????? | | ????????# #? "" # + Y" #????? | | ????????# # """ # #% """ #????? | | ????????# # """ # # #????? | | ????????# + """ # ########????? | | ????????# # " # #???????????? | | ????????# # # #???????????? | | ????######/######## #???????????? | | ????# ## #???????????? | +----------------------------------------------------+ Best States ------------- Heat Dissipation 69 Energy Generation 14 Energy Capacity 250 Matter Stores 300 Matter Capacity 300 Sight Range 16 Terrain Scan Density 10 Weapon Shielding 66 Evasion (%) 50 Recoil Reduction 2 Item Schematics ----------------- None Robot Schematics ------------------ None Fabricated ------------ Nothing Alien Tech Used ----------------- None Achievements -------------- None Challenges ------------ None Game ------ Seed FlakDynamicBuckler Manual? 0 Play Time 00:12:28 Cumulative 3.6 hours Start 2019.10.31 @ 14:06:38 End 2019.10.31 @ 14:19:01 Sessions 1 Manual Loads 0 Difficulty Rogue Special Mode None Game No. 10 Rogue 10 Adventurer 0 Explorer 0 Win Type - Total 0 Types 0/0/0/0/0/0/0 Lore% 3 Gallery% 10 Achievement% 4 Wizard Run 0 Options --------- ASCII 0 Keyboard 0 Movement Mouse Keybinds 0 Fullscreen 1 Font 18/SmallcapsGlow Map View 76x50 Tactical HUD 0 Map Filters NONE Filters NONE Steam 1 RUN: 0dc070ad-d959-4ff0-9092-1dcf813d8b06